bitfinex/quotes_SOLUSD_20250317
["timestamp","ask_amount","ask_price","bid_price","bid_amount"]
[1742228779301,0.0001,127.93,127.92,9.72297938]
[1742228779671,0.0001,127.93,127.91,9.75297938]
[1742228780683,0.0001,127.93,127.92,9.72297938]
[1742228781081,0.0001,127.93,127.92,17.54027938]
[1742228781272,0.0001,127.93,127.92,7.8173]
[1742228781487,0.0001,127.93,127.91,17.57067938]
[1742228783484,0.0001,127.93,127.91,0.03]
[1742228783686,9.72297938,127.92,127.91,0.03]
[1742228783998,29.86524095,127.93,127.91,0.03]
[1742228784499,20.14226157,127.93,127.91,0.03]
[1742228784874,29.86524095,127.93,127.91,0.03]
[1742228785703,9.86524095,127.93,127.91,0.03]
[1742228785879,0.14226157,127.93,127.91,0.03]
[1742228786075,0.0001,127.93,127.91,0.03]
[1742228787404,17.68214095,127.93,127.91,0.03]
[1742228787699,0.0001,127.93,127.92,24.66027938]
[1742228791309,0.0001,127.93,127.92,31.68729937]
[1742228791806,0.0001,127.93,127.92,30.12426855]
[1742228793308,0.0001,127.93,127.92,14.9373]
[1742228793606,0.0001,127.93,127.91,7.8477]
[1742228794181,0.0001,127.93,127.91,23.03466855]
[1742228794598,0.0001,127.93,127.91,7.8477]
[1742228795107,0.0001,127.93,127.91,23.03466855]
[1742228795901,35.18696855,127.92,127.91,0.03]
[1742228796981,43.00426855,127.92,127.91,0.03]
[1742228797176,43.14643012,127.92,127.91,0.03]
[1742228804102,62.22256369,127.92,127.91,0.03]
[1742228809520,19.21829514,127.91,127.87,0.03]
[1742228809837,43.14893012,127.88,127.87,0.03]
[1742228811205,35.32913012,127.88,127.87,0.03]
[1742228811933,35.18696855,127.88,127.87,0.03]
[1742228812135,35.32913012,127.88,127.87,0.03]
[1742228812435,20.0,127.88,127.87,0.03]
[1742228814436,9.73506879,127.91,127.87,0.03]
[1742228814645,9.73506879,127.92,127.87,9.76506879]
[1742228814812,9.73506879,127.92,127.87,16.88506879]
[1742228815643,9.73506879,127.91,127.87,7.15]
[1742228816036,20.0,127.9,127.87,7.15]
[1742228816222,20.0,127.9,127.87,16.88506879]
[1742228816423,20.0,127.9,127.88,7.8198]
[1742228818120,20.0,127.9,127.87,7.15]
[1742228818121,20.0,127.9,127.87,14.9702]
[1742228818425,15.20679848,127.89,127.87,7.15]
[1742228819337,15.34896005,127.9,127.87,7.15]
[1742228819945,15.20679848,127.89,127.87,7.15]
[1742228820318,15.20679848,127.89,127.87,0.03]
[1742228821819,15.34896005,127.9,127.87,0.03]
[1742228822017,20.0,127.89,127.87,0.03]
[1742228822853,20.0,127.89,127.87,7.8504]
[1742228823752,20.0,127.91,127.87,7.8504]
[1742228823935,35.20679848,127.91,127.87,7.8504]
[1742228825150,35.20679848,127.91,127.87,23.05719848]
[1742228825151,20.0,127.91,127.87,23.05719848]
[1742228825453,0.0001,127.93,127.89,15.20679848]
[1742228825651,15.20689848,127.93,127.88,23.85119848]
[1742228825824,15.20679848,127.9,127.88,7.12]
[1742228826256,15.20679848,127.89,127.87,0.03]
[1742228826753,35.20679848,127.9,127.87,0.03]
[1742228827255,15.20679848,127.88,127.87,0.03]
[1742228829040,29.53549848,127.88,127.86,0.03]
[1742228829241,39.07613357,127.8,127.79,0.03]
[1742228829445,0.14216157,127.79,127.77,0.03]
[1742228829651,34.28293205,127.78,127.77,0.03]
[1742228829960,92.19443269,127.78,127.77,0.03]
[1742228830168,92.05227112,127.78,127.77,0.03]
[1742228830460,20.0,127.76,127.75,11.32030579]
[1742228831027,15.20679848,127.76,127.75,11.32030579]
[1742228831228,35.20679848,127.76,127.75,11.32030579]
[1742228831537,20.0,127.76,127.75,11.32030579]
[1742228832068,15.20679848,127.78,127.75,11.32030579]
[1742228833144,15.20679848,127.77,127.74,7.15]
[1742228834048,15.20679848,127.76,127.74,7.15]
[1742228834633,15.20679848,127.77,127.74,7.15]
[1742228834832,15.20679848,127.77,127.74,6.15]
[1742228835034,7.8248,127.8,127.74,21.35679848]
[1742228835235,23.03159848,127.8,127.74,21.35679848]
[1742228835436,15.20679848,127.79,127.74,10.34550993]
[1742228836053,15.20679848,127.77,127.74,7.12]
[1742228836262,15.20679848,127.76,127.74,7.12]
[1742228836669,15.20679848,127.77,127.74,7.12]
[1742228837461,23.03349848,127.77,127.74,7.12]
[1742228840645,15.20679848,127.73,127.68,15.20679848]
[1742228840843,15.20679848,127.73,127.69,7.12]
[1742228841439,35.20679848,127.75,127.69,30.15799848]
[1742228841952,15.20679848,127.74,127.69,30.15799848]
[1742228842461,15.20679848,127.73,127.69,7.12]
[1742228842761,15.20679848,127.74,127.69,30.15819848]
[1742228843266,15.20679848,127.74,127.69,14.9514]
[1742228844138,20.0,127.75,127.69,14.9514]
[1742228844139,15.20679848,127.73,127.69,14.9514]
[1742228844338,15.20679848,127.73,127.69,7.12]
[1742228844544,15.20679848,127.73,127.68,23.03859848]
[1742228844855,15.20679848,127.72,127.68,14.952]
[1742228845060,15.20679848,127.73,127.68,14.952]
[1742228845944,15.20679848,127.73,127.68,7.832]
[1742228846144,15.20679848,127.73,127.68,14.952]
[1742228846458,15.20679848,127.73,127.68,30.15879848]
[1742228846864,15.20679848,127.73,127.68,14.952]
[1742228847159,15.20679848,127.73,127.68,30.15879848]
[1742228847361,20.0,127.75,127.71,15.20679848]
[1742228847566,0.063,127.77,127.73,23.03569848]
[1742228851067,0.063,127.77,127.74,15.20679848]
[1742228851267,0.063,127.77,127.75,15.20679848]
[1742228852271,0.063,127.77,127.74,15.20679848]
[1742228853270,0.063,127.77,127.75,7.8277]
[1742228854667,12.21919502,127.86,127.76,44.59427386]
[1742228854849,15.20679848,127.85,127.8,15.20679848]
[1742228855055,0.14216157,127.85,127.8,15.20679848]
[1742228855255,20.0,127.83,127.8,7.8247]
[1742228855472,15.20679848,127.84,127.8,7.8247]
[1742228855850,12.21919502,127.86,127.8,42.59329848]
[1742228856051,15.20679848,127.85,127.8,42.59329848]
[1742228857351,15.20679848,127.85,127.8,23.03149848]
[1742228857764,15.20679848,127.85,127.8,30.15149848]
[1742228858666,15.20679848,127.85,127.8,14.9447]
[1742228859372,15.20679848,127.85,127.8,30.15149848]
[1742228859866,15.20679848,127.85,127.8,49.71329848]
[1742228861877,15.20679848,127.85,127.8,42.59329848]
[1742228862171,15.20679848,127.85,127.8,49.71329848]
[1742228863769,15.20679848,127.85,127.8,30.15149848]
[1742228864276,15.20679848,127.84,127.79,29.57289848]
[1742228866653,15.20679848,127.82,127.79,14.3661]
[1742228867672,15.20679848,127.81,127.78,7.8257]
[1742228867857,15.20679848,127.82,127.78,7.8257]
[1742228869859,15.20679848,127.81,127.77,7.8265]
[1742228870955,15.20679848,127.82,127.77,42.59969848]
[1742228871155,0.14216157,127.83,127.77,27.3929]
[1742228871156,15.34896005,127.83,127.77,27.3929]
[1742228871574,15.34896005,127.83,127.78,15.20679848]
[1742228872077,15.34896005,127.83,127.79,7.8253]
[1742228872261,15.20679848,127.82,127.79,7.8253]
[1742228873171,15.20679848,127.82,127.78,7.8256]
[1742228873377,15.20679848,127.81,127.78,7.8256]
[1742228873958,15.20679848,127.82,127.77,42.59969848]
[1742228874469,15.34896005,127.83,127.77,42.59969848]
[1742228874778,15.34896005,127.83,127.78,15.20679848]
[1742228875389,15.34896005,127.83,127.77,42.59969848]
[1742228875761,15.20679848,127.81,127.77,27.3929]
[1742228876453,15.20679848,127.82,127.77,42.59969848]
[1742228876657,15.20679848,127.82,127.77,42.62969848]
[1742228877661,15.34896005,127.83,127.78,15.20679848]
[1742228878069,22.32679848,127.84,127.79,15.20679848]
[1742228878277,22.32679848,127.84,127.8,7.8247]
[1742228878477,15.20679848,127.83,127.8,7.8247]
[1742228879383,7.12,127.84,127.8,7.8247]
[1742228879575,22.32679848,127.84,127.8,7.8247]
[1742228880270,15.20679848,127.83,127.79,7.8253]
[1742228880869,15.20679848,127.84,127.79,7.8253]
[1742228881572,15.26979848,127.85,127.8,15.20679848]
[1742228881963,0.063,127.85,127.8,15.20679848]
[1742228882158,15.26979848,127.85,127.8,15.20679848]
[1742228882376,15.26979848,127.85,127.81,7.8241]
[1742228882964,15.20679848,127.84,127.81,7.8241]
[1742228883280,15.20679848,127.84,127.8,7.8247]
[1742228883484,15.20679848,127.83,127.78,15.20679848]
[1742228883890,15.20679848,127.83,127.78,16.55486458]
[1742228884573,15.20679848,127.83,127.79,7.8251]
[1742228884884,15.20679848,127.84,127.79,7.8251]
[1742228885661,15.20679848,127.82,127.79,7.8251]
[1742228887278,15.20679848,127.82,127.78,9.1737661]
[1742228887471,15.20679848,127.82,127.78,1.3480661]
[1742228887472,23.03029848,127.82,127.78,1.3480661]
[1742228887675,15.20679848,127.81,127.78,9.1739661]
[1742228888394,15.34896005,127.82,127.78,9.1739661]
[1742228888891,0.14216157,127.84,127.79,15.20679848]
[1742228889089,0.063,127.85,127.81,15.20679848]
[1742228889988,0.063,127.85,127.8,15.20679848]
[1742228890495,0.063,127.85,127.81,15.20679848]
[1742228890792,15.26979848,127.85,127.81,7.8241]
[1742228891287,15.20679848,127.84,127.81,7.8241]
[1742228891487,15.41196005,127.85,127.81,7.8241]
[1742228891694,0.063,127.85,127.81,7.8241]
[1742228891873,0.063,127.85,127.81,27.3843]
[1742228892995,15.26979848,127.85,127.81,27.3843]
[1742228893871,15.26979848,127.85,127.81,7.8241]
[1742228894790,15.20679848,127.84,127.81,7.8241]
[1742228895897,15.26979848,127.85,127.81,7.8241]
[1742228898397,0.063,127.85,127.81,27.3843]
[1742228898600,0.063,127.85,127.82,15.20679848]
[1742228898776,0.063,127.85,127.81,35.1472]
[1742228898974,0.063,127.85,127.81,50.35399848]
[1742228903503,15.20679848,127.84,127.81,7.7629]
[1742228904106,15.20679848,127.84,127.81,15.5868]
[1742228904910,15.41196005,127.85,127.81,15.5868]
[1742228905502,0.063,127.85,127.81,30.79359848]
[1742228906086,15.26979848,127.85,127.81,15.5868]
[1742228907210,0.063,127.85,127.81,30.79359848]
[1742228907410,0.063,127.85,127.81,50.35379848]
[1742228907614,0.063,127.85,127.79,1.3480661]
[1742228907615,7.96626157,127.81,127.79,1.3480661]
[1742228907823,15.34896005,127.8,127.79,1.3480661]
[1742228908318,22.32679848,127.81,127.79,1.3480661]
[1742228908503,15.20679848,127.81,127.79,1.3480661]
[1742228909394,15.20679848,127.82,127.79,1.3480661]
[1742228910803,15.20679848,127.81,127.79,1.3480661]
[1742228911392,15.20679848,127.8,127.79,1.3480661]
[1742228912717,23.03149848,127.8,127.79,1.3480661]
[1742228913309,23.03109848,127.81,127.79,1.3480661]
[1742228914513,15.20679848,127.8,127.79,1.3480661]
[1742228915320,23.03109848,127.81,127.79,1.3480661]
[1742228916132,26.053972,127.84,127.79,1.3480661]
[1742228916426,15.20679848,127.83,127.79,1.3480661]
[1742228916593,15.20679848,127.83,127.79,9.1733661]
[1742228917518,15.26979848,127.85,127.8,15.20679848]
[1742228917699,15.26979848,127.85,127.8,16.82899848]
[1742228917904,15.26979848,127.85,127.8,23.94899848]
[1742228918108,0.063,127.85,127.81,15.20679848]
[1742228918494,0.063,127.85,127.82,15.20679848]
[1742228919712,0.063,127.85,127.83,15.20679848]
[1742228919919,0.063,127.85,127.83,21.51169848]
[1742228920416,0.063,127.85,127.83,6.3049]
[1742228920721,0.063,127.85,127.84,31.67689848]
[1742228922004,11.0,127.88,127.84,51.23249848]
[1742228922307,11.0,127.88,127.87,15.20679848]
[1742228922616,11.0,127.88,127.87,23.02719848]
[1742228926412,11.0,127.88,127.87,15.20679848]
[1742228926611,11.0,127.88,127.86,7.8208]
[1742228927123,11.0,127.88,127.87,15.20679848]
[1742228928708,11.0,127.88,127.86,14.9408]
[1742228928910,11.0,127.88,127.87,15.20679848]
[1742228929517,0.063,127.9,127.87,153.30679848]
[1742228929723,0.063,127.9,127.89,15.20679848]
[1742228930109,0.063,127.9,127.88,21.25829848]
[1742228930506,0.063,127.9,127.88,6.0515]
[1742228930830,0.063,127.9,127.88,7.8198]
[1742228932702,0.063,127.9,127.87,161.12689848]
[1742228933108,0.063,127.9,127.86,26.6726]
[1742228933109,0.063,127.9,127.86,30.14759848]
[1742228933627,0.063,127.9,127.87,15.20679848]
[1742228934532,0.063,127.9,127.86,30.14759848]
[1742228935429,20.14216157,127.88,127.81,345.46]
[1742228935631,15.20679848,127.83,127.8,6.6148]
[1742228935834,15.20679848,127.83,127.79,2.9781661]
[1742228936035,15.20679848,127.83,127.79,10.8034661]
[1742228936537,15.20679848,127.83,127.79,2.9781661]
[1742228936718,15.20679848,127.82,127.79,1.3480661]
[1742228937436,15.20679848,127.81,127.79,1.3480661]
[1742228938233,15.20679848,127.82,127.79,1.3480661]
[1742228938631,15.20679848,127.83,127.79,1.3480661]
[1742228939413,15.20679848,127.84,127.79,24.38006458]
[1742228939624,15.20679848,127.84,127.79,1.3480661]
[1742228940028,15.20679848,127.84,127.79,24.38016458]
[1742228940229,15.20679848,127.86,127.8,15.20679848]
[1742228940517,0.14216157,127.87,127.8,15.20679848]
[1742228940518,15.20679848,127.85,127.8,15.20679848]
[1742228940917,15.20679848,127.84,127.79,154.65486458]
[1742228941136,15.20679848,127.85,127.79,162.47996458]
[1742228942322,15.20679848,127.83,127.79,1.3480661]
[1742228943335,15.20679848,127.84,127.79,24.38006458]
[1742228943937,15.20679848,127.84,127.79,16.55486458]
[1742228944119,15.20679848,127.83,127.79,1.3480661]
[1742228944621,15.20679848,127.84,127.79,1.3480661]
[1742228945720,15.20679848,127.84,127.79,9.1733661]
[1742228945916,15.20679848,127.85,127.79,24.38016458]
[1742228946120,15.20679848,127.85,127.8,15.20679848]
[1742228947028,20.0,127.86,127.81,15.20679848]
[1742228947238,15.34896005,127.87,127.81,15.20679848]
[1742228947421,0.14216157,127.87,127.82,7.8235]
[1742228947729,15.34896005,127.87,127.82,7.8235]
[1742228947930,7.775,127.9,127.83,15.20679848]
[1742228948146,15.34896005,127.89,127.83,15.20679848]
[1742228948935,0.063,127.88,127.83,15.20679848]
[1742228949130,0.063,127.88,127.85,15.20679848]
[1742228949331,0.063,127.88,127.86,15.20679848]
[1742228949617,0.063,127.88,127.87,23.02719848]
[1742228950126,0.063,127.9,127.88,1.6471]
[1742228950331,0.063,127.9,127.89,15.20679848]
[1742228953441,0.0001,127.91,127.9,46.7846862]
[1742228953632,0.0001,127.91,127.9,54.46112463]
[1742228954040,0.0001,127.91,127.9,192.84544777]
[1742228954242,0.0001,127.91,127.9,191.28257997]
[1742228954446,0.0001,127.93,127.9,191.28257997]
[1742228954644,0.0001,127.93,127.92,54.28293205]
[1742228955730,0.0001,127.93,127.92,62.10023205]
[1742228955956,0.0001,127.93,127.92,374.10023205]
[1742228957245,0.0001,127.93,127.9,168.86970949]
[1742228957246,0.0001,127.93,127.91,23.02449848]
[1742228957441,0.0001,127.93,127.91,7.8177]
[1742228957633,0.0001,127.93,127.9,14.9185]
[1742228957839,0.0001,127.93,127.9,7.1]
[1742228958032,0.0001,127.93,127.9,14.9185]
[1742228958232,0.0001,127.93,127.9,30.12529848]
[1742228960053,0.0001,127.93,127.92,15.20679848]
[1742228960650,0.0001,127.93,127.91,15.20679848]
[1742228961232,0.0001,127.93,127.9,30.12529848]
[1742228961456,0.0001,127.93,127.9,14.9185]
[1742228961639,0.0001,127.93,127.9,30.12529848]
[1742228962253,0.0001,127.93,127.91,0.03]
[1742228967331,15.20689848,127.93,127.91,0.03]
[1742228967749,15.20679848,127.92,127.91,0.03]
[1742228967951,0.0001,127.93,127.91,0.03]
[1742228968142,15.20689848,127.93,127.91,0.03]
[1742228968537,15.20679848,127.92,127.91,0.03]
[1742228968851,15.34896005,127.92,127.91,0.03]
[1742228970940,23.16626005,127.92,127.91,0.03]
[1742228971135,43.74409362,127.92,127.91,0.03]
[1742228973542,35.92679362,127.92,127.91,0.03]
[1742228975260,43.74409362,127.92,127.91,0.03]
[1742228975447,35.92679362,127.92,127.91,0.03]
[1742228975861,43.74409362,127.92,127.91,0.03]
[1742228976236,35.92679362,127.92,127.91,0.03]
[1742228976435,15.34896005,127.92,127.91,0.03]
[1742228977066,15.20689848,127.93,127.91,0.03]
[1742228977641,35.20679848,127.92,127.91,0.03]
[1742228977842,15.20679848,127.92,127.91,0.03]
[1742228980651,15.34906005,127.93,127.91,0.03]
[1742228980853,15.20689848,127.93,127.91,0.03]
[1742228981744,0.0001,127.93,127.91,0.03]
[1742228982667,0.0001,127.93,127.91,15.23679848]
[1742228983647,0.0001,127.93,127.92,7.8173]
[1742228985581,0.0001,127.93,127.92,23.02409848]
[1742228987247,0.0001,127.93,127.92,7.8173]
[1742228987457,0.0001,127.93,127.92,23.02409848]
[1742228989998,0.0001,127.93,127.92,7.8173]
[1742228990285,0.0001,127.93,127.91,14.9477]
[1742228990487,0.0001,127.93,127.91,7.8477]
[1742228991870,0.0001,127.93,127.91,0.03]
[1742228994057,0.0001,127.93,127.91,7.8479]
[1742228996099,0.0001,127.93,127.91,23.05469848]
[1742228997290,0.0001,127.93,127.92,15.20679848]
[1742228997869,0.0001,127.93,127.92,23.02409848]
[1742228998071,0.0001,127.93,127.92,7.8173]
[1742228999006,0.0001,127.93,127.92,23.02409848]
[1742229000604,0.0001,127.93,127.92,187.80083205]
[1742229001198,0.0001,127.93,127.92,168.72469848]
[1742229001991,0.0001,127.93,127.92,162.67849848]
[1742229003695,0.0001,127.93,127.92,161.12409848]
[1742229004485,0.0001,127.93,127.92,145.9173]
[1742229004882,0.0001,127.93,127.91,0.03]
[1742229005289,0.0001,127.93,127.91,15.23679848]
[1742229006303,0.0001,127.93,127.91,0.03]
[1742229007406,0.0001,127.93,127.91,15.23679848]
[1742229008104,0.0001,127.93,127.92,15.20679848]
[1742229009104,0.0001,127.93,127.92,23.02409848]
[1742229010108,0.0001,127.93,127.92,161.12409848]
[1742229010907,0.0001,127.93,127.92,181.90519362]
[1742229011975,0.0001,127.96,127.95,20.0]
[1742229012178,0.0001,127.96,127.95,180.40679848]
[1742229013808,0.0001,127.96,127.95,492.40679848]
[1742229014102,0.0001,127.96,127.95,500.22229848]
[1742229014986,0.0001,127.96,127.95,188.22229848]
[1742229015798,0.0001,127.96,127.95,145.2]
[1742229015999,0.0001,127.96,127.93,7.8167]
[1742229016299,0.0001,127.96,127.93,23.02349848]
[1742229016480,0.0001,127.96,127.94,15.20679848]
[1742229018000,0.0001,127.96,127.92,7.8171]
[1742229018201,15.20679848,127.94,127.91,0.03]
[1742229018393,15.20679848,127.93,127.91,0.03]
[1742229018600,15.20679848,127.92,127.91,0.03]
[1742229019485,15.20679848,127.93,127.91,0.03]
[1742229020202,15.20679848,127.94,127.91,0.03]
[1742229020410,15.20679848,127.95,127.91,0.03]
[1742229020912,0.0001,127.96,127.91,15.23679848]
[1742229021086,15.20689848,127.96,127.91,15.23679848]
[1742229022007,15.20679848,127.95,127.91,0.03]
[1742229022392,15.20679848,127.95,127.91,7.8479]
[1742229023514,15.20679848,127.93,127.91,0.03]
[1742229023718,15.20679848,127.94,127.91,0.03]
[1742229024311,15.34896005,127.95,127.91,0.03]
[1742229024695,15.20689848,127.96,127.91,15.23679848]
[1742229024915,0.0001,127.96,127.92,15.20679848]
[1742229025317,0.0001,127.96,127.91,15.23679848]
[1742229026040,0.0001,127.96,127.91,0.03]
[1742229026240,0.0001,127.96,127.91,15.23679848]
[1742229026602,15.20679848,127.95,127.91,0.03]
[1742229027630,15.20679848,127.95,127.91,7.8477]
[1742229029208,15.20679848,127.95,127.91,0.03]
[1742229033140,15.20679848,127.93,127.91,0.03]
[1742229033310,15.20679848,127.92,127.91,0.03]
[1742229034433,15.20679848,127.93,127.91,0.03]
[1742229036412,23.02359848,127.93,127.91,0.03]
[1742229036614,15.20679848,127.92,127.91,0.03]
[1742229036818,15.34896005,127.92,127.91,0.03]
[1742229037835,15.20679848,127.93,127.91,0.03]
[1742229038822,22.44896005,127.94,127.91,0.03]
[1742229039237,15.20679848,127.95,127.91,0.03]
[1742229039547,15.34906005,127.96,127.91,15.23679848]
[1742229039930,15.20679848,127.95,127.91,0.03]
[1742229040940,15.20679848,127.95,127.91,7.8479]
[1742229041443,15.20679848,127.95,127.91,27.3928]
[1742229041644,15.34906005,127.96,127.91,42.59959848]
[1742229042336,15.20679848,127.95,127.91,27.3928]
[1742229042946,0.0001,127.96,127.92,15.20679848]
[1742229043440,0.0001,127.96,127.93,15.20679848]
[1742229043649,0.0001,127.96,127.95,15.20679848]
[1742229044829,0.0001,127.96,127.94,138.1]
[1742229045034,0.0001,127.96,127.94,145.9158]
[1742229045232,0.0001,127.96,127.94,138.1]
[1742229045432,15.20679848,127.95,127.94,138.1]
[1742229045634,15.20679848,127.95,127.91,22.8466]
[1742229045837,15.20679848,127.94,127.91,14.9478]
[1742229046537,15.20679848,127.93,127.91,0.03]
[1742229046742,15.20679848,127.92,127.91,0.03]
[1742229046940,15.20679848,127.93,127.91,0.03]
[1742229047256,15.20679848,127.94,127.91,0.03]
[1742229047419,15.34896005,127.95,127.91,0.03]
[1742229048054,0.0001,127.96,127.91,0.03]
[1742229048229,15.20679848,127.95,127.91,0.03]
[1742229049129,15.20679848,127.95,127.91,7.8479]
[1742229049751,15.20679848,127.95,127.91,27.3928]
[1742229049957,0.0001,127.96,127.93,15.20679848]
[1742229050159,0.0001,127.96,127.92,15.20679848]
[1742229050956,0.0001,127.96,127.92,22.30679848]
[1742229051130,0.0001,127.96,127.93,23.02349848]
[1742229051444,0.0001,127.96,127.94,15.20679848]
[1742229051649,0.0001,127.96,127.95,15.20679848]
[1742229052837,0.0001,127.96,127.95,153.30679848]
[1742229053032,0.0001,127.96,127.95,161.12229848]
[1742229053233,0.063,127.98,127.95,161.12229848]
[1742229053234,0.0001,127.98,127.96,19.07613357]
[1742229053439,0.0001,127.98,127.97,62.94510274]
[1742229053632,0.0001,127.98,127.97,201.04510274]
[1742229053874,0.0001,127.98,127.97,199.48293205]
[1742229054223,0.0001,128.0,127.98,19.07613357]
[1742229054555,0.0001,128.0,127.99,15.20679848]
[1742229055147,0.0001,128.0,127.99,23.01989848]
[1742229055651,0.0001,128.0,127.99,29.27829848]
[1742229056029,0.0001,128.0,127.99,49.91634449]
[1742229056230,0.0001,128.0,127.99,51.43074449]
[1742229056647,0.0001,128.0,127.99,363.43074449]
[1742229056829,0.0001,128.0,127.99,342.79269848]
[1742229057931,0.0001,128.0,127.99,480.89269848]
[1742229059652,0.0001,128.0,127.99,168.89269848]
[1742229060838,0.0001,128.0,127.99,152.9528]
[1742229061038,0.0001,128.0,127.99,7.08]
[1742229061462,0.0001,128.0,127.99,14.8931]
[1742229061762,0.0001,128.0,127.99,30.09989848]
[1742229062861,0.0001,128.0,127.99,342.09989848]
[1742229063065,0.0001,128.0,127.99,480.19989848]
[1742229063855,0.0001,128.0,127.99,499.27603205]
[1742229064251,0.063,128.01,128.0,19.21829514]
[1742229064252,0.0001,128.01,128.0,19.21829514]
[1742229064438,0.0001,128.01,128.0,174.08665016]
[1742229064638,0.0001,128.01,128.0,172.52509362]
[1742229064834,0.0001,128.01,128.0,180.52629362]
[1742229065066,0.063,128.04,128.03,20.0]
[1742229065375,0.0001,128.04,128.03,214.66973053]
[1742229065556,0.0001,128.04,128.03,222.48033053]
[1742229065856,0.0001,128.04,128.03,207.27353205]
[1742229066043,0.0001,128.04,128.03,222.48033053]
[1742229066463,0.0001,128.04,128.03,222.6224921]
[1742229067140,0.0001,128.06,128.05,6.40862314]
[1742229067340,0.0001,128.06,128.05,24.79882268]
[1742229067545,0.0001,128.06,128.05,344.60822268]
[1742229067743,0.0001,128.06,128.05,343.04732162]
[1742229069660,0.0001,128.06,128.05,500.08129362]
[1742229070155,0.063,128.09,128.08,20.0]
[1742229070354,0.063,128.09,128.08,199.32077048]
[1742229070561,0.063,128.09,128.08,180.38679848]
[1742229071967,0.063,128.09,128.08,188.19439848]
[1742229072750,0.063,128.09,128.08,188.47872162]
[1742229073158,0.063,128.12,128.1,15.20679848]
[1742229073359,0.063,128.12,128.11,15.49112162]
[1742229074284,0.063,128.12,128.11,161.39682162]
[1742229075274,0.0001,128.12,128.11,181.72073205]
[1742229075566,0.0001,128.13,128.12,18.79181043]
[1742229075754,0.0001,128.13,128.12,180.73882406]
[1742229075956,0.0001,128.13,128.12,179.17860891]
[1742229076345,0.0001,128.13,128.12,186.98370891]
[1742229076862,0.0001,128.13,128.12,168.47622162]
[1742229078576,0.0001,128.13,128.12,187.26803205]
[1742229080178,0.0001,128.13,128.12,187.12587048]
[1742229080557,0.0001,128.13,128.12,187.26803205]
[1742229081257,0.0001,128.13,128.12,187.41019362]
[1742229082969,0.0001,128.16,128.15,20.0]
[1742229083174,0.03,128.21,128.16,0.28432314]
[1742229083476,0.03,128.21,128.19,15.20679848]
[1742229083876,0.03,128.21,128.18,15.20679848]
[1742229085178,0.03,128.21,128.19,7.8009]
[1742229085358,0.03,128.21,128.2,19.07613357]
[1742229085559,0.03,128.23,128.22,20.28432314]
[1742229085766,0.03,128.23,128.22,180.67112162]
[1742229086658,0.03,128.23,128.22,180.38679848]
[1742229087272,0.03,128.23,128.22,188.18579848]
[1742229088176,0.03,128.23,128.22,172.979]
[1742229088787,0.03,128.23,128.22,188.18579848]
[1742229092359,0.03,128.23,128.22,172.979]
[1742229092689,0.03,128.23,128.22,188.18579848]
[1742229093760,0.0001,128.23,128.22,188.47012162]
[1742229093968,0.0001,128.23,128.22,188.61228319]
[1742229094380,0.0001,128.23,128.22,188.47012162]
[1742229096476,0.063,128.25,128.23,0.14216157]
[1742229096676,0.063,128.25,128.24,30.6979201]
[1742229096880,0.063,128.25,128.24,15.49112162]
[1742229097085,0.03,128.26,128.24,15.49112162]
[1742229097280,7.8543,128.33,128.25,35.98386923]
[1742229097487,7.8543,128.33,128.29,15.20679848]
[1742229098099,7.8543,128.33,128.29,23.00149848]
[1742229098270,30.85359848,128.33,128.28,15.20679848]
[1742229098794,23.06109848,128.33,128.28,23.00219848]
[1742229099293,15.20679848,128.32,128.27,23.00279848]
[1742229099592,15.20679848,128.32,128.27,7.796]
[1742229099758,15.20679848,128.32,128.27,23.00279848]
[1742229100202,41.64944734,128.32,128.27,15.20679848]
[1742229100380,15.20679848,128.31,128.26,22.28679848]
[1742229100971,15.20679848,128.31,128.26,23.00339848]
[1742229102372,23.00079848,128.31,128.26,15.20679848]
[1742229102672,15.20679848,128.3,128.25,15.20679848]
[1742229102885,15.20679848,128.3,128.25,23.00399848]
[1742229103195,7.794,128.31,128.26,15.20679848]